fUSD/lending_fUSD_20250125
["ID","MTS","AMOUNT","RATE_DAILY","PERIOD"]
[350327736,1737797463933,-659.04738624,0.00018,3]
[350327737,1737797463943,-388.001393,0.00018,5]
[350327738,1737797463953,-1135.36479407,0.00018,2]
[350327739,1737797463963,-1033.45045277,0.00018,2]
[350327740,1737797463973,-5615.36403996,0.00018,2]
[350327741,1737797463982,-1903.80379298,0.0001802,2]
[350327742,1737797463992,-1903.80379299,0.0001802,2]
[350327743,1737797464013,-15030.5413631,0.0001804,2]
[350327744,1737797464029,-150.0,0.00018054,2]
[350327745,1737797464048,-150.0,0.00018059,2]
[350327746,1737797464065,-151.95,0.00018065,2]
[350327747,1737797464084,-27849.44114153,0.00018071,2]
[350327748,1737797464101,-500.0,0.00018079,2]
[350327749,1737797464121,-500.0,0.00018079,2]
[350327750,1737797464138,-500.0,0.00018079,2]
[350327751,1737797464156,-847.51,0.00018079,2]
[350327752,1737797464174,-151.0,0.00018079,2]
[350327753,1737797464190,-151.0,0.00018079,2]
[350327754,1737797464205,-500.0,0.00018079,2]
[350327755,1737797464222,-152.778165,0.00018079,2]
[350327756,1737797464237,-948.3,0.00018079,2]
[350327757,1737797464254,-500.0,0.00018079,2]
[350327758,1737797464270,-383.95166986,0.00018079,2]
[350327759,1737797464285,-500.0,0.00018079,2]
[350327760,1737797464299,-892.9,0.00018079,2]
[350327761,1737797464315,-500.0,0.00018079,2]
[350327762,1737797464331,-810.96,0.00018079,2]
[350327763,1737797464346,-2187.67,0.00018079,2]
[350327764,1737797464362,-500.0,0.00018079,2]
[350327765,1737797464377,-500.0,0.00018079,2]
[350327766,1737797464392,-790.46,0.00018079,2]
[350327767,1737797464406,-1160.27,0.00018079,2]
[350327768,1737797464422,-1757.48,0.00018079,2]
[350327769,1737797464436,-500.0,0.00018079,2]
[350327770,1737797464453,-1000.0,0.00018079,2]
[350327771,1737797464466,-1272.01,0.00018079,2]
[350327772,1737797464482,-500.0,0.00018079,2]
[350327773,1737797464496,-2144.12,0.00018079,2]
[350327774,1737797464511,-1761.29,0.00018079,2]
[350327775,1737797464525,-500.0,0.00018079,2]
[350327776,1737797464544,-500.0,0.00018079,2]
[350327777,1737797464559,-500.0,0.0001808,2]
[350327778,1737797464573,-660.25,0.0001808,2]
[350327779,1737797464587,-500.0,0.0001808,2]
[350327780,1737797464601,-500.0,0.0001808,2]
[350327781,1737797464616,-517.75671372,0.0001808,2]
[350327782,1737797464630,-500.0,0.0001808,2]
[350327783,1737797464644,-500.0,0.0001808,2]
[350327784,1737797464658,-556.36,0.0001808,2]
[350327785,1737797464672,-556.97,0.0001808,2]
[350327786,1737797464686,-500.0,0.0001808,2]
[350327787,1737797464702,-500.0,0.0001808,2]
[350327788,1737797464717,-554.44,0.0001808,2]
[350327789,1737797464732,-520.83,0.0001808,2]
[350327790,1737797464747,-500.0,0.0001808,2]
[350327791,1737797464761,-457.75906595,0.0001808,2]
[350327792,1737797464776,-500.0,0.0001808,2]
[350327793,1737797464791,-500.0,0.0001808,2]
[350327794,1737797464806,-500.0,0.0001808,2]
[350327795,1737797464820,-500.0,0.0001808,2]
[350327796,1737797464834,-500.0,0.0001808,2]
[350327797,1737797464849,-670.64,0.0001808,2]
[350327798,1737797464863,-500.0,0.0001808,2]
[350327799,1737797464878,-602.32,0.0001808,2]
[350327800,1737797464892,-680.16,0.0001808,2]
[350327801,1737797464907,-529.1,0.0001808,2]
[350327802,1737797464921,-500.0,0.0001808,2]
[350327803,1737797464935,-859.85,0.00018081,2]
[350327804,1737797464949,-500.0,0.00018081,2]
[350327805,1737797464964,-1261.29,0.00018081,2]
[350327806,1737797464979,-500.0,0.00018081,2]
[350327807,1737797464993,-414.733287,0.00018081,2]
[350327808,1737797465006,-253.19935468,0.00018081,2]
[350327809,1737797465148,-500.0,0.00018081,2]
[350327810,1737797465158,-500.0,0.00018081,2]
[350327811,1737797465168,-886.87,0.00018081,2]
[350327812,1737797465177,-677.70576,0.00018081,2]
[350327813,1737797465187,-751.77,0.00018081,2]
[350327814,1737797465197,-1965.33,0.00018081,2]
[350327815,1737797465206,-1750.49,0.00018081,2]
[350327816,1737797465215,-620.77,0.00018081,2]
[350327817,1737797465224,-911.51,0.00018081,2]
[350327818,1737797465233,-500.0,0.00018081,2]
[350327819,1737797465242,-1144.83,0.00018081,2]
[350327820,1737797465252,-3470.4,0.00018081,2]
[350327821,1737797465261,-670.47,0.00018081,2]
[350327822,1737797465271,-931.54,0.00018081,2]
[350327823,1737797465281,-1892.47,0.00018081,2]
[350327824,1737797465291,-1137.65,0.00018081,2]
[350327825,1737797465301,-526.37,0.00018081,2]
[350327826,1737797465310,-2356.62,0.00018081,2]
[350327827,1737797465319,-2776.17,0.00018081,2]
[350327828,1737797465328,-1575.32,0.00018081,2]
[350327829,1737797465338,-1053.08,0.00018081,2]
[350327830,1737797465347,-500.0,0.00018081,2]
[350327831,1737797465357,-3004.39,0.00018081,2]
[350327832,1737797465367,-607.11,0.00018081,2]
[350327833,1737797465376,-854.74,0.00018081,2]
[350327834,1737797465387,-1162.18,0.00018081,2]
[350327835,1737797465398,-966.49,0.00018082,2]
[350327836,1737797465407,-1692.78,0.00018082,2]
[350327837,1737797465416,-1322.88,0.00018082,2]
[350327838,1737797465426,-3207.34,0.00018082,2]
[350327839,1737797465435,-1220.06,0.00018082,2]
[350327840,1737797465445,-1876.29,0.00018082,2]
[350327841,1737797465454,-3623.03,0.00018082,2]
[350327842,1737797465463,-1095.65,0.00018082,2]
[350327843,1737797465473,-893.22,0.00018082,2]
[350327844,1737797465482,-500.0,0.00018082,2]
[350327845,1737797465491,-2172.47,0.00018082,2]
[350327846,1737797465500,-500.0,0.00018082,2]
[350327847,1737797465508,-2137.64,0.00018082,2]
[350327848,1737797465517,-3965.67,0.00018082,2]
[350327849,1737797465526,-727.17,0.00018082,2]
[350327850,1737797465534,-2139.73,0.00018082,2]
[350327851,1737797465540,-658.04,0.00018082,2]
[350327852,1737797465553,-500.0,0.00018082,2]
[350327853,1737797465563,-993.89,0.00018082,2]
[350327854,1737797465572,-1604.26,0.00018082,2]
[350327855,1737797465581,-500.0,0.00018082,2]
[350327856,1737797465591,-500.0,0.00018082,2]
[350327857,1737797465600,-767.56,0.00018082,2]
[350327858,1737797465610,-1799.67,0.00018082,2]
[350327859,1737797465620,-900.97,0.00018082,2]
[350327860,1737797465634,-2375.71,0.00018082,2]
[350327861,1737797465643,-730.12,0.00018082,2]
[350327862,1737797465653,-849.75,0.00018082,2]
[350327863,1737797465663,-681.52,0.00018082,2]
[350327864,1737797465672,-563.98,0.00018082,2]
[350327865,1737797465682,-500.0,0.00018082,2]
[350327866,1737797465692,-500.0,0.00018082,2]
[350327867,1737797465702,-1043.69,0.00018082,2]
[350327868,1737797465712,-719.35,0.00018082,2]
[350327869,1737797465722,-549.73,0.00018082,2]
[350327870,1737797465732,-500.0,0.00018082,2]
[350327871,1737797465742,-540.78,0.00018082,2]
[350327872,1737797465751,-500.0,0.00018082,2]
[350327873,1737797465761,-382.11576994,0.00018082,2]
[350327874,1737797465771,-807.75,0.00018082,2]
[350327875,1737797465782,-1420.82,0.00018082,2]
[350327876,1737797465791,-1101.59,0.00018082,2]
[350327877,1737797465801,-1481.32,0.00018082,2]
[350327878,1737797465810,-1244.19,0.00018082,2]
[350327879,1737797465820,-565.45,0.00018082,2]
[350327880,1737797465830,-638.58,0.00018082,2]
[350327881,1737797465840,-2982.69,0.00018082,2]
[350327882,1737797465849,-1367.72,0.00018082,2]
[350327883,1737797465859,-2048.69,0.00018082,2]
[350327884,1737797465868,-200.0,0.00018082,2]
[350327885,1737797465878,-756.81,0.00018082,2]
[350327886,1737797465888,-391.80149259,0.000181,2]
[350327887,1737797465898,-150.0,0.00018104,2]
[350327888,1737797465907,-1857.52180965,0.00018107,2]
[350327889,1737797465917,-383.99380774,0.00018115,2]
[350327890,1737797465926,-500.0,0.00018115,2]
[350327891,1737797465936,-553.97,0.00018115,2]
[350327892,1737797465945,-500.0,0.00018115,2]
[350327893,1737797465955,-584.38,0.00018115,2]
[350327894,1737797465964,-500.0,0.00018115,2]
[350327895,1737797465973,-584.16,0.00018115,2]
[350327896,1737797465983,-647.83,0.00018115,2]
[350327897,1737797465992,-572.01,0.00018115,2]
[350327898,1737797466001,-500.0,0.00018115,2]
[350327899,1737797466011,-704.28,0.00018115,2]
[350327900,1737797466021,-500.0,0.00018115,2]
[350327901,1737797466031,-683.65,0.00018115,2]
[350327902,1737797466041,-294.74590717,0.00018115,2]
[350327903,1737797466050,-544.45,0.00018115,2]
[350327904,1737797466059,-668.98,0.00018115,2]
[350327905,1737797466069,-558.68,0.00018115,2]
[350327906,1737797466078,-596.36,0.00018115,2]
[350327907,1737797466088,-531.39,0.00018115,2]
[350327908,1737797466097,-599.6,0.00018115,2]
[350327909,1737797466106,-500.0,0.00018115,2]
[350327910,1737797466116,-703.57,0.00018115,2]
[350327911,1737797466125,-500.0,0.00018115,2]
[350327912,1737797466134,-577.49,0.00018115,2]
[350327913,1737797466144,-767.15,0.00018115,2]
[350327914,1737797466153,-730.31,0.00018115,2]
[350327915,1737797466164,-502.52,0.00018115,2]
[350327916,1737797466173,-734.62,0.00018115,2]
[350327917,1737797466182,-685.56,0.00018115,2]
[350327918,1737797466193,-730.02,0.00018115,2]
[350327919,1737797466202,-500.0,0.00018115,2]
[350327920,1737797466212,-500.0,0.00018115,2]
[350327921,1737797466221,-509.44,0.00018115,2]
[350327922,1737797466231,-500.0,0.00018115,2]
[350327923,1737797466240,-590.44,0.00018115,2]
[350327924,1737797466249,-564.49,0.00018115,2]
[350327925,1737797466259,-602.74,0.00018115,2]
[350327926,1737797466269,-670.66,0.00018115,2]
[350327927,1737797466279,-542.87,0.00018115,2]
[350327928,1737797466288,-500.0,0.00018115,2]
[350327929,1737797466298,-599.52,0.00018115,2]
[350327930,1737797466307,-500.0,0.00018115,2]
[350327931,1737797466316,-717.06,0.00018115,2]
[350327932,1737797466326,-553.14121323,0.00018115,2]
[350327933,1737797466335,-251.942098,0.00018116,2]
[350327934,1737797466344,-251.942098,0.00018116,2]
[350327935,1737797466353,-150.0,0.0001814,2]
[350327936,1737797466362,-500.0,0.00018164,2]
[350327937,1737797466371,-500.0,0.00018164,2]
[350327938,1737797466380,-150.0,0.00018181,2]
[350327939,1737797466390,-82902.51968737,0.00018189,2]
[350327940,1737797466399,-151.0,0.00018189,2]
[350327941,1737797466408,-500.0,0.00018216,2]
[350327942,1737797466417,-500.0,0.00018216,2]
[350327943,1737797466426,-500.0,0.00018216,2]
[350327944,1737797466435,-847.51,0.00018216,2]
[350327945,1737797466444,-500.0,0.00018216,2]
[350327946,1737797466454,-948.3,0.00018216,2]
[350327947,1737797466462,-288.9919301,0.00018216,2]
[350327948,1737797466472,-500.0,0.00018216,2]
[350327949,1737797466482,-892.9,0.00018216,2]
[350327950,1737797466491,-500.0,0.00018216,2]
[350327951,1737797466500,-810.96,0.00018216,2]
[350327952,1737797466509,-2187.67,0.00018216,2]
[350327953,1737797466521,-464.58094647,0.00018216,2]
[350327954,1737797466530,-625.36218827,0.00018216,2]
[350327955,1737797466543,-790.46,0.00018216,2]
[350327956,1737797466553,-1160.27,0.00018216,2]
[350327957,1737797466562,-1757.48,0.00018216,2]
[350327958,1737797466572,-500.0,0.00018216,2]
[350327959,1737797466582,-1000.0,0.00018216,2]
[350327960,1737797466591,-1272.01,0.00018216,2]
[350327961,1737797466601,-500.0,0.00018216,2]
[350327962,1737797466610,-2144.12,0.00018216,2]
[350327963,1737797466622,-1761.29,0.00018216,2]
[350327964,1737797466632,-500.0,0.00018216,2]
[350327965,1737797466641,-500.0,0.00018216,2]
[350327966,1737797466651,-500.0,0.00018217,2]
[350327967,1737797466660,-660.25,0.00018217,2]
[350327968,1737797466670,-500.0,0.00018217,2]
[350327969,1737797466679,-500.0,0.00018217,2]
[350327970,1737797466689,-500.0,0.00018217,2]
[350327971,1737797466698,-500.0,0.00018217,2]
[350327972,1737797466708,-556.36,0.00018217,2]
[350327973,1737797466718,-556.97,0.00018217,2]
[350327974,1737797466728,-500.0,0.00018217,2]
[350327975,1737797466737,-500.0,0.00018217,2]
[350327976,1737797466746,-554.44,0.00018217,2]
[350327977,1737797466756,-520.83,0.00018217,2]
[350327978,1737797466765,-500.0,0.00018217,2]
[350327979,1737797466775,-500.0,0.00018217,2]
[350327980,1737797466785,-500.0,0.00018217,2]
[350327981,1737797466796,-500.0,0.00018217,2]
[350327982,1737797466806,-500.0,0.00018217,2]
[350327983,1737797466815,-500.0,0.00018217,2]
[350327984,1737797466826,-670.64,0.00018217,2]
[350327985,1737797466835,-269.70438932,0.00018217,2]
[350327986,1737797466845,-602.32,0.00018217,2]
[350327987,1737797466854,-680.16,0.00018217,2]
[350327988,1737797466863,-529.1,0.00018217,2]
[350327989,1737797466873,-500.0,0.00018217,2]
[350327990,1737797466883,-859.85,0.00018218,2]
[350327991,1737797466892,-500.0,0.00018218,2]
[350327992,1737797466902,-1261.29,0.00018218,2]
[350327993,1737797466912,-500.0,0.00018218,2]
[350327994,1737797466922,-414.733287,0.00018218,2]
[350327995,1737797466932,-391.96409953,0.00018218,2]
[350327996,1737797466941,-500.0,0.00018218,2]
[350327997,1737797466952,-886.87,0.00018218,2]
[350327998,1737797466962,-677.70576,0.00018218,2]
[350327999,1737797466972,-751.77,0.00018218,2]
[350328000,1737797466981,-1965.33,0.00018218,2]
[350328001,1737797466990,-1750.49,0.00018218,2]
[350328002,1737797466999,-620.77,0.00018218,2]
[350328003,1737797467008,-911.51,0.00018218,2]
[350328004,1737797467018,-500.0,0.00018218,2]
[350328005,1737797467028,-153.002702,0.00018218,2]
[350328006,1737797467038,-1144.83,0.00018218,2]
[350328007,1737797467146,-3470.4,0.00018218,2]
[350328008,1737797467156,-670.47,0.00018218,2]
[350328009,1737797467166,-931.54,0.00018218,2]
[350328010,1737797467176,-1892.47,0.00018218,2]
[350328011,1737797467185,-1137.65,0.00018218,2]
[350328012,1737797467195,-526.37,0.00018218,2]
[350328013,1737797467205,-2356.62,0.00018218,2]
[350328014,1737797467214,-2776.17,0.00018218,2]
[350328015,1737797467223,-1575.32,0.00018218,2]
[350328016,1737797467232,-1053.08,0.00018218,2]
[350328017,1737797467242,-500.0,0.00018218,2]
[350328018,1737797467251,-3004.39,0.00018218,2]
[350328019,1737797467261,-607.11,0.00018218,2]
[350328020,1737797467270,-854.74,0.00018218,2]
[350328021,1737797467281,-1162.18,0.00018218,2]
[350328022,1737797467291,-966.49,0.00018219,2]
[350328023,1737797467300,-1692.78,0.00018219,2]
[350328024,1737797467310,-1322.88,0.00018219,2]
[350328025,1737797467319,-3207.34,0.00018219,2]
[350328026,1737797467328,-1220.06,0.00018219,2]
[350328027,1737797467337,-1876.29,0.00018219,2]
[350328028,1737797467348,-3623.03,0.00018219,2]
[350328029,1737797467357,-1095.65,0.00018219,2]
[350328030,1737797467367,-893.22,0.00018219,2]
[350328031,1737797467376,-500.0,0.00018219,2]
[350328032,1737797467385,-2172.47,0.00018219,2]
[350328033,1737797467394,-500.0,0.00018219,2]
[350328034,1737797467405,-2137.64,0.00018219,2]
[350328035,1737797467414,-3965.67,0.00018219,2]
[350328036,1737797467424,-727.17,0.00018219,2]
[350328037,1737797467433,-2139.73,0.00018219,2]
[350328038,1737797467442,-658.04,0.00018219,2]
[350328039,1737797467451,-500.0,0.00018219,2]
[350328040,1737797467460,-993.89,0.00018219,2]
[350328041,1737797467470,-1604.26,0.00018219,2]
[350328042,1737797467478,-500.0,0.00018219,2]
[350328043,1737797467487,-500.0,0.00018219,2]
[350328044,1737797467497,-767.56,0.00018219,2]
[350328045,1737797467507,-1799.67,0.00018219,2]
[350328046,1737797467516,-900.97,0.00018219,2]
[350328047,1737797467526,-2375.71,0.00018219,2]
[350328048,1737797467539,-730.12,0.00018219,2]
[350328049,1737797467548,-849.75,0.00018219,2]
[350328050,1737797467558,-681.52,0.00018219,2]
[350328051,1737797467567,-563.98,0.00018219,2]
[350328052,1737797467578,-500.0,0.00018219,2]
[350328053,1737797467587,-500.0,0.00018219,2]
[350328054,1737797467596,-1043.69,0.00018219,2]
[350328055,1737797467606,-719.35,0.00018219,2]
[350328056,1737797467616,-549.73,0.00018219,2]
[350328057,1737797467626,-500.0,0.00018219,2]
[350328058,1737797467636,-540.78,0.00018219,2]
[350328059,1737797467645,-500.0,0.00018219,2]
[350328060,1737797467655,-807.75,0.00018219,2]
[350328061,1737797467664,-1420.82,0.00018219,2]
[350328062,1737797467674,-1101.59,0.00018219,2]
[350328063,1737797467684,-1481.32,0.00018219,2]
[350328064,1737797467693,-1244.19,0.00018219,2]
[350328065,1737797467704,-565.45,0.00018219,2]
[350328066,1737797467713,-638.58,0.00018219,2]
[350328067,1737797467723,-2982.69,0.00018219,2]
[350328068,1737797467732,-1367.72,0.00018219,2]
[350328069,1737797467742,-2048.69,0.00018219,2]
[350328070,1737797467752,-150.0,0.00018225,2]
[350328071,1737797467761,-150.0,0.00018246,2]
[350328072,1737797467771,-500.0,0.00018252,2]
[350328073,1737797467780,-553.97,0.00018252,2]
[350328074,1737797467790,-500.0,0.00018252,2]
[350328075,1737797467803,-584.38,0.00018252,2]
[350328076,1737797467813,-500.0,0.00018252,2]
[350328077,1737797467822,-584.16,0.00018252,2]
[350328078,1737797467831,-647.83,0.00018252,2]
[350328079,1737797467840,-572.01,0.00018252,2]
[350328080,1737797467849,-500.0,0.00018252,2]
[350328081,1737797467859,-704.28,0.00018252,2]
[350328082,1737797467869,-500.0,0.00018252,2]
[350328083,1737797467878,-683.65,0.00018252,2]
[350328084,1737797467888,-544.45,0.00018252,2]
[350328085,1737797467897,-668.98,0.00018252,2]
[350328086,1737797467906,-558.68,0.00018252,2]
[350328087,1737797467916,-596.36,0.00018252,2]
[350328088,1737797467926,-531.39,0.00018252,2]
[350328089,1737797467935,-599.6,0.00018252,2]
[350328090,1737797467945,-500.0,0.00018252,2]
[350328091,1737797467954,-703.57,0.00018252,2]
[350328092,1737797467964,-500.0,0.00018252,2]
[350328093,1737797467974,-577.49,0.00018252,2]
[350328094,1737797467984,-767.15,0.00018252,2]
[350328095,1737797467993,-730.31,0.00018252,2]
[350328096,1737797468003,-502.52,0.00018252,2]
[350328097,1737797468013,-734.62,0.00018252,2]
[350328098,1737797468022,-685.56,0.00018252,2]
[350328099,1737797468034,-730.02,0.00018252,2]
[350328100,1737797468044,-297.18766357,0.00018252,2]
[350328101,1737797468054,-500.0,0.00018252,2]
[350328102,1737797468063,-509.44,0.00018252,2]
[350328103,1737797468072,-500.0,0.00018252,2]
[350328104,1737797468082,-590.44,0.00018252,2]
[350328105,1737797468091,-564.49,0.00018252,2]
[350328106,1737797468100,-602.74,0.00018252,2]
[350328107,1737797468109,-670.66,0.00018252,2]
[350328108,1737797468119,-542.87,0.00018252,2]
[350328109,1737797468129,-500.0,0.00018252,2]
[350328110,1737797468138,-599.52,0.00018252,2]
[350328111,1737797468149,-500.0,0.00018252,2]
[350328112,1737797468158,-717.06,0.00018252,2]
[350328113,1737797468169,-725.42771793,0.00018255,2]
[350328114,1737797468178,-150.0,0.00018287,2]
[350328115,1737797468188,-150.0,0.00018295,2]
[350328116,1737797468198,-151.43,0.000183,2]
[350328117,1737797468207,-150.0,0.00018305,2]
[350328118,1737797468217,-173.57,0.00018322,2]
[350328119,1737797468227,-3433.51976,0.00018343,2]
[350328120,1737797468236,-150.0,0.00018348,2]
[350328121,1737797468246,-500.0,0.00018353,2]
[350328122,1737797468255,-500.0,0.00018353,2]
[350328123,1737797468268,-500.0,0.00018353,2]
[350328124,1737797468277,-847.51,0.00018353,2]
[350328125,1737797468289,-500.0,0.00018353,2]
[350328126,1737797468298,-948.3,0.00018353,2]
[350328127,1737797468307,-500.0,0.00018353,2]
[350328128,1737797468318,-892.9,0.00018353,2]
[350328129,1737797468327,-500.0,0.00018353,2]
[350328130,1737797468337,-810.96,0.00018353,2]
[350328131,1737797468347,-2187.67,0.00018353,2]
[350328132,1737797468356,-790.46,0.00018353,2]
[350328133,1737797468366,-1160.27,0.00018353,2]
[350328134,1737797468375,-1757.48,0.00018353,2]
[350328135,1737797468385,-500.0,0.00018353,2]
[350328136,1737797468394,-1000.0,0.00018353,2]
[350328137,1737797468403,-1272.01,0.00018353,2]
[350328138,1737797468413,-500.0,0.00018353,2]
[350328139,1737797468422,-2144.12,0.00018353,2]
[350328140,1737797468431,-1761.29,0.00018353,2]
[350328141,1737797468441,-500.0,0.00018353,2]
[350328142,1737797468451,-500.0,0.00018353,2]
[350328143,1737797468460,-500.0,0.00018354,2]
[350328144,1737797468470,-660.25,0.00018354,2]
[350328145,1737797468479,-500.0,0.00018354,2]
[350328146,1737797468489,-500.0,0.00018354,2]
[350328147,1737797468499,-500.0,0.00018354,2]
[350328148,1737797468508,-500.0,0.00018354,2]
[350328149,1737797468518,-556.36,0.00018354,2]
[350328150,1737797468527,-556.97,0.00018354,2]
[350328151,1737797468542,-500.0,0.00018354,2]
[350328152,1737797468551,-554.44,0.00018354,2]
[350328153,1737797468560,-520.83,0.00018354,2]
[350328154,1737797468569,-500.0,0.00018354,2]
[350328155,1737797468580,-500.0,0.00018354,2]
[350328156,1737797468589,-500.0,0.00018354,2]
[350328157,1737797468599,-500.0,0.00018354,2]
[350328158,1737797468609,-500.0,0.00018354,2]
[350328159,1737797468618,-500.0,0.00018354,2]
[350328160,1737797468628,-670.64,0.00018354,2]
[350328161,1737797468637,-602.32,0.00018354,2]
[350328162,1737797468646,-680.16,0.00018354,2]
[350328163,1737797468656,-529.1,0.00018354,2]
[350328164,1737797468665,-500.0,0.00018354,2]
[350328165,1737797468675,-859.85,0.00018355,2]
[350328166,1737797468684,-500.0,0.00018355,2]
[350328167,1737797468694,-1261.29,0.00018355,2]
[350328168,1737797468704,-500.0,0.00018355,2]
[350328169,1737797468714,-414.733287,0.00018355,2]
[350328170,1737797468724,-500.0,0.00018355,2]
[350328171,1737797468733,-886.87,0.00018355,2]
[350328172,1737797468742,-677.70576,0.00018355,2]
[350328173,1737797468752,-751.77,0.00018355,2]
[350328174,1737797468762,-1965.33,0.00018355,2]
[350328175,1737797468772,-1750.49,0.00018355,2]
[350328176,1737797468781,-620.77,0.00018355,2]
[350328177,1737797468791,-911.51,0.00018355,2]
[350328178,1737797468801,-500.0,0.00018355,2]
[350328179,1737797468811,-1144.83,0.00018355,2]
[350328180,1737797468821,-3470.4,0.00018355,2]
[350328181,1737797468830,-670.47,0.00018355,2]
[350328182,1737797468840,-931.54,0.00018355,2]
[350328183,1737797468850,-1892.47,0.00018355,2]
[350328184,1737797468860,-1137.65,0.00018355,2]
[350328185,1737797468870,-526.37,0.00018355,2]
[350328186,1737797468879,-2356.62,0.00018355,2]
[350328187,1737797468982,-2776.17,0.00018355,2]
[350328188,1737797468992,-1575.32,0.00018355,2]
[350328189,1737797469002,-1053.08,0.00018355,2]
[350328190,1737797469011,-500.0,0.00018355,2]
[350328191,1737797469020,-3004.39,0.00018355,2]
[350328192,1737797469030,-607.11,0.00018355,2]
[350328193,1737797469040,-854.74,0.00018355,2]
[350328194,1737797469049,-1162.18,0.00018355,2]
[350328195,1737797469058,-151.0,0.00018356,2]
[350328196,1737797469067,-151.0,0.00018356,2]
[350328197,1737797469076,-151.0,0.00018356,2]
[350328198,1737797469086,-151.0,0.00018356,2]
[350328199,1737797469095,-966.49,0.00018356,2]
[350328200,1737797469104,-1692.78,0.00018356,2]
[350328201,1737797469114,-1322.88,0.00018356,2]
[350328202,1737797469123,-3207.34,0.00018356,2]
[350328203,1737797469132,-1220.06,0.00018356,2]
[350328204,1737797469142,-1876.29,0.00018356,2]
[350328205,1737797469151,-3623.03,0.00018356,2]
[350328206,1737797469161,-1095.65,0.00018356,2]
[350328207,1737797469171,-893.22,0.00018356,2]
[350328208,1737797469180,-500.0,0.00018356,2]
[350328209,1737797469189,-2172.47,0.00018356,2]
[350328210,1737797469199,-500.0,0.00018356,2]
[350328211,1737797469208,-2137.64,0.00018356,2]
[350328212,1737797469218,-3965.67,0.00018356,2]
[350328213,1737797469228,-727.17,0.00018356,2]
[350328214,1737797469237,-2139.73,0.00018356,2]
[350328215,1737797469247,-658.04,0.00018356,2]
[350328216,1737797469256,-500.0,0.00018356,2]
[350328217,1737797469265,-993.89,0.00018356,2]
[350328218,1737797469275,-1604.26,0.00018356,2]
[350328219,1737797469285,-500.0,0.00018356,2]
[350328220,1737797469294,-500.0,0.00018356,2]
[350328221,1737797469304,-767.56,0.00018356,2]
[350328222,1737797469313,-1799.67,0.00018356,2]
[350328223,1737797469322,-900.97,0.00018356,2]
[350328224,1737797469332,-2375.71,0.00018356,2]
[350328225,1737797469342,-730.12,0.00018356,2]
[350328226,1737797469351,-849.75,0.00018356,2]
[350328227,1737797469360,-681.52,0.00018356,2]
[350328228,1737797469370,-563.98,0.00018356,2]
[350328229,1737797469379,-500.0,0.00018356,2]
[350328230,1737797469388,-500.0,0.00018356,2]
[350328231,1737797469398,-1043.69,0.00018356,2]
[350328232,1737797469407,-719.35,0.00018356,2]
[350328233,1737797469416,-549.73,0.00018356,2]
[350328234,1737797469426,-500.0,0.00018356,2]
[350328235,1737797469435,-540.78,0.00018356,2]